Cogmind - Beta 9.6 @@@ ROGUE MODE // 2020.09.07 @ 16:15:36 Player: cavemonk Result: Destroyed self via exploding Nuclear Reactor Performance ------------- Evolutions (5) 2500 Regions Visited (8) 1600 Robots Destroyed (119) 595 Value Destroyed (3708) 3708 Prototype IDs (7) 140 Alien Tech Used (0) 0 Bonus (394) 394 TOTAL SCORE: 8937 Bonus ------- High Alert Combat Kills 351 Follower Combat Kills 160 Friendly Fire -117 Cogmind --------- Core Integrity 0/1000 Matter 281/300 Energy 522/540 System Corruption 21% Temperature Cool (0) Movement Treading (205) Ox2 Location -5/Factory Parts ------- > --- POWER (2) -------- Micro Fission Core Micro Fission Core > --- PROPULSION (2) --- Improved Treads Armored Medium Treads > --- UTILITY (10) ----- Improved Cooling System High-capacity Storage Unit High-capacity Storage Unit Compact Battery Energy Filter Hardened Heavy Armor Plating Improved Medium Armor Plating Improved Focal Shield > --- WEAPON (3) ------- High-powered Shock Rifle Tesla Rifle Heavy Phase Cannon > --- INVENTORY (20) --- Light Angular Momentum Engine Light Angular Momentum Engine Micro Fission Core Improved Treads Improved Treads Carbon-fiber Leg Flexi-carbon Leg Flexi-carbon Leg Armored Leg Power Amplifier Advanced Heat Sink Medium Storage Unit Large Storage Unit Compact Battery (300) Long-range Terrain Scanner Recoil Nullifier Improved Kinecellerator Improved Focal Shield Improved Focal Shield KE Penetrator Peak State ------------ > --- POWER ------------ Micro Fission Core Micro Fission Core > --- PROPULSION ------- Improved Treads Armored Medium Treads > --- UTILITY ---------- Advanced Heat Sink High-capacity Storage Unit High-capacity Storage Unit High-capacity Storage Unit Advanced Targeting Computer Energy Filter Hardened Heavy Armor Plating Improved Medium Armor Plating Improved Focal Shield > --- WEAPON ----------- High-powered Shock Rifle Tesla Rifle Heavy Phase Cannon > --- INVENTORY -------- Light Angular Momentum Engine Light Angular Momentum Engine Micro Fission Core Improved Treads Carbon-fiber Leg Carbon-fiber Leg Carbon-fiber Leg Carbon-fiber Leg Carbon-fiber Leg Improved Titanium Leg Flexi-carbon Leg Flexi-carbon Leg Flexi-carbon Leg Armored Leg Antigrav System Power Amplifier Improved Cooling System Medium Storage Unit Large Storage Unit Compact Battery Compact Battery Matter Compressor Recoil Nullifier Improved Kinecellerator Improved Focal Shield Improved Focal Shield Improved Focal Shield Improved Component Analysis Suite [Rating: 82] Favorites ----------- Power Improved Deuterium Engine Engine Improved Deuterium Engine Power Core Enhanced Nuclear Core Propulsion Light Treads Treads Light Treads Leg Armored Leg Wheel Wheel Utility High-capacity Storage Unit Device Improved Terrain Scanner Storage High-capacity Storage Unit Processor Improved Signal Interpreter Protection Improved Power Shielding Weapon Heavy EM Pulse Gun Energy Gun Heavy EM Pulse Gun Energy Cannon Heavy Particle Cannon Ballistic Gun Autogun Ballistic Cannon Flak Cannon Launcher Rocket Launcher Special Weapon Improved Plasma Cutter Slashing Weapon Katana Build | -11 -10 -10 -10 -9 -8 -7 -6 -5 ------- Run | Scr Mat Min Exi Min Mat Fac Fac Fac Slots Evolved 10 | . . . . . 4 2 2 2 Power 1 | . . . . . . 1 . . Propulsion . | . . . . . . . . . Utility 8 | . . . . . 3 1 2 2 Weapon 1 | . . . . . 1 . . . Parts Attached 185 | 11 19 . . 2 29 8 23 93 Power 15 | 1 . . . 1 1 1 2 9 Engine 9 | 1 . . . . 1 1 1 5 Core 6 | . . . . 1 . . 1 4 Reactor . | . . . . . . . . . Propulsion 31 | 4 2 . . 1 6 . 1 17 Treads 16 | . 1 . . 1 5 . 1 8 Leg 11 | 2 . . . . . . . 9 Wheel 4 | 2 1 . . . 1 . . . Hover . | . . . . . . . . . Flight . | . . . . . . . . . Utility 69 | 2 2 . . . 8 5 13 39 Device 46 | 1 . . . . 3 3 11 28 Storage 10 | 1 2 . . . 1 . 1 5 Processor 4 | . . . . . 1 2 . 1 Hackware . | . . . . . . . . . Protection 9 | . . . . . 3 . 1 5 Artifact . | . . . . . . . . . Weapon 70 | 4 15 . . . 14 2 7 28 Energy Gun 19 | 1 6 . . . 5 . 1 6 Energy Cannon 11 | . . . . . . 2 2 7 Ballistic Gun 8 | 3 3 . . . 2 . . . Ballistic Cannon 2 | . . . . . 1 . . 1 Launcher 18 | . 6 . . . 2 . 1 9 Special Weapon 1 | . . . . . . . . 1 Impact Weapon . | . . . . . . . . . Slashing Weapon 11 | . . . . . 4 . 3 4 Piercing Weapon . | . . . . . . . . . Special Melee Weapon . | . . . . . . . . . Unidentified Prototypes 3 | . . . . . . . 2 1 Parts Lost 48 | . 2 . . . 2 . . 44 Power 7 | . . . . . . . . 7 Propulsion 7 | . 1 . . . . . . 6 Utility 16 | . . . . . . . . 16 Weapon 18 | . 1 . . . 2 . . 15 Highest Loss Streak 12 | . 2 . . . 1 . . 12 Average Slot Usage (%) 97 | . 99 100 100 100 99 97 100 92 Engine 8 | . 14 14 14 3 8 12 8 4 Core 3 | . . . . 10 . . 4 4 Treads 12 | . 3 14 14 23 15 15 13 6 Leg 1 | . . . . . . . . 4 Wheel 5 | . 24 14 14 4 2 . . . Device 11 | . 6 . . . 6 14 25 20 Storage 24 | . 21 28 28 28 27 17 18 22 Processor 3 | . . . . . 3 4 6 5 Protection 3 | . . . . . 7 7 1 3 Energy Gun 11 | . 12 28 28 28 14 . 1 3 Energy Cannon 3 | . . . . . . 15 13 5 Ballistic Gun 2 | . 12 . . . 6 . . . Slashing Weapon 2 | . . . . . 2 7 4 2 Naked Turns . | . . . . . . . . . Heaviest Build 169 | 13 76 75 75 75 105 110 131 169 Greatest Support 50 | 20 20 10 10 40 40 40 40 50 Greatest Overweight (x) 8 | 3 7 7 7 7 8 2 3 7 Average Overweight (x) 3 | . 3 7 7 2 4 2 2 3 Largest Inventory Capacity 38 | 6 20 20 20 20 26 26 26 38 Average Capacity 24 | 5 16 20 20 20 25 21 24 32 Most Carried 28 | 6 20 20 20 20 26 26 26 28 Average Carried 21 | 5 14 19 20 19 25 21 24 21 Final Capacity 26 | 6 20 20 20 20 26 20 26 20 Final Carried 26 | 6 20 20 20 20 26 20 26 20 Class Distribution -------------------- 51% | Hauler-Mutant 18% | Hauler-Assassin 12% | Hauler-Tank 7% | Hauler-Gunner 6% | Mutant Dominant Class ---------------- Hauler-Mutant | -10/Materials Hauler-Mutant | -10/Mines Hauler-Mutant | -10/Exiles Hauler-Mutant | -9/Mines Hauler-Tank | -8/Materials Hauler-Mutant | -7/Factory Hauler-Assassin | -6/Factory Hauler-Mutant | -5/Factory Resources | -11 -10 -10 -10 -9 -8 -7 -6 -5 ----------- Run | Scr Mat Min Exi Min Mat Fac Fac Fac Matter Collected 3453 | 310 296 82 . 111 832 140 210 1472 Remotely . | . . . . . . . . . Salvage Created 4603 | 180 297 . . 52 1191 . 233 2650 Parts 253 | 29 21 . . 5 74 . 8 116 Haulers Intercepted 4 | . . . . . 3 . . 1 Recyclers Shooed 7 | 1 . . . . 1 . 1 4 Parts Field Recycled . | . . . . . . . . . Retrieved Matter . | . . . . . . . . . Parts Self-Destructed . | . . . . . . . . . Prevented . | . . . . . . . . . Kills | -11 -10 -10 -10 -9 -8 -7 -6 -5 ------- Run | Scr Mat Min Exi Min Mat Fac Fac Fac Combat Hostiles Destroyed 68 | . 10 . . 1 18 . 4 35 Melee 6 | . . . . . . . . 6 Guns 18 | . 7 . . 1 6 . 2 2 Cannons 8 | . . . . . 3 . 2 3 AOE 30 | . 3 . . . 8 . . 19 Classes Destroyed 16 | 3 3 . . 1 4 . 1 4 Worker 9 | 1 1 . . . 2 . . 5 Builder 17 | . 1 . . . 1 . . 15 Tunneler 7 | 6 . . . . 1 . . . Hauler 4 | . . . . . 3 . . 1 Recycler 9 | 1 . . . . 4 . . 4 Mechanic 1 | . . . . . . . . 1 Operator 1 | . . . . . 1 . . . Watcher 2 | . . . . . . . . 2 Swarmer 9 | . 2 . . . 7 . . . Grunt 36 | . 8 . . . 7 . 2 19 Brawler 4 | . . . . . 1 . . 3 Duelist 2 | . . . . . . . . 2 Protector 1 | . . . . . . . . 1 Sentry 8 | . . . . 1 3 . 1 3 Hunter 3 | . . . . . 1 . . 2 Programmer 6 | . . . . . . . 1 5 Best Kill Streak 15 | 5 3 . . 1 8 . 3 15 Combat Bots Only 8 | . 2 . . 1 4 . 3 8 Max Kills in Single Turn 6 | 1 2 . . 1 3 . 1 6 Gunslinging . | . . . . . . . . . Exploded 2 | . 1 . . . 2 . . 2 Melee 1 | . . . . . . . . 1 Uniques/NPCs Destroyed . | . . . . . . . . . Combat | -11 -10 -10 -10 -9 -8 -7 -6 -5 -------- Run | Scr Mat Min Exi Min Mat Fac Fac Fac Damage Taken 8044 | . 307 7 . . 1087 . 281 6362 Core 1222 | . 42 . . . 154 . 20 1006 Absorbed by Shields . | . . . . . . . . . Core Remaining (%) 90 | 100 . . . 83 72 100 97 . Volleys Fired 209 | 19 30 . . 1 64 . 11 84 Largest 3 | 1 2 . . 2 3 . 3 3 Hottest 240 | 40 90 . . 90 165 . 230 240 Shots Fired 467 | 19 42 . . 2 175 . 33 196 Gun 264 | 19 26 . . 2 148 . 9 60 Cannon 128 | . . . . . 19 . 24 85 Launcher 75 | . 16 . . . 8 . . 51 Special . | . . . . . . . . . Kinetic 67 | . 8 . . . 57 . . 2 Thermal 159 | 19 . . . . . . 33 107 Explosive 59 | . 16 . . . 4 . . 39 Electromagnetic 182 | . 18 . . 2 114 . . 48 Robot Hit Streak 24 | 7 8 . . 7 15 . 20 24 Robot Miss Streak 6 | 1 3 . . . 6 . 1 4 Penetration Max . | . . . . . . . . . Secondary Targets . | . . . . . . . . . Shots Hit Robots 323 | 14 19 . . 2 108 . 23 157 Core Hits 216 | 9 21 . . 2 56 . 8 120 Critical Hits 2 | . . . . . . . 1 1 Critical Kills 1 | . . . . . . . . 1 Critical Parts Destroyed 1 | . . . . . . . 1 . Melee Attacks 104 | . . . . . 26 7 19 52 Impact . | . . . . . . . . . Slashing 104 | . . . . . 26 7 19 52 Piercing . | . . . . . . . . . Sneak Attacks 4 | . . . . . . . . 4 Combat Hostiles . | . . . . . . . . . Follow-up Attacks . | . . . . . . . . . Damage Inflicted 12491 | 174 790 . . 28 2286 . 662 8551 Guns 2757 | 174 237 . . 28 1129 . 209 980 Cannons 2504 | . . . . . 243 . 453 1808 Explosions 6104 | . 553 . . . 884 . . 4667 Melee 1126 | . . . . . 30 . . 1096 Ramming . | . . . . . . . . . Kinetic 766 | . 69 . . . 687 . . 10 Thermal 3672 | 174 . . . . 320 . 662 2516 Explosive 5048 | . 553 . . . 420 . . 4075 Electromagnetic 1879 | . 168 . . 28 829 . . 854 Impact . | . . . . . . . . . Slashing 1126 | . . . . . 30 . . 1096 Piercing . | . . . . . . . . . Highest Corruption 21 | . . . . . . . . 21 Average Corruption 17 | . . . . . . . . 17 Corruption Purged . | . . . . . . . . . Effects 115 | . . . . . . . . 115 Message Errors 20 | . . . . . . . . 20 Matter Fused 12 | . . . . . . . . 12 Heat Flow Errors 12 | . . . . . . . . 12 Energy Discharges 8 | . . . . . . . . 8 Parts Rejected 3 | . . . . . . . . 3 Data Loss (minor) 7 | . . . . . . . . 7 Data Loss (major) 4 | . . . . . . . . 4 Misfires 4 | . . . . . . . . 4 Alerts 1 | . . . . . . . . 1 Misdirections 7 | . . . . . . . . 7 Targeting Errors 33 | . . . . . . . . 33 Weapon Failures 4 | . . . . . . . . 4 Overload Shots . | . . . . . . . . . Overflow Damage 700 | . 42 . . . 67 . . 591 Projectiles 62 | . . . . . . . . 62 Explosions 502 | . 42 . . . 67 . . 393 Melee 136 | . . . . . . . . 136 Knockbacks 6 | . . . . . 6 . . . Impact . | . . . . . . . . . Kinetic 6 | . . . . . 6 . . . Secondary . | . . . . . . . . . Self-Inflicted Damage 1163 | . 20 . . . 112 . . 1031 Shots 26 | . 1 . . . 3 . . 22 Rammed . | . . . . . . . . . Targets Rammed . | . . . . . . . . . Kicked . | . . . . . . . . . Crushed . | . . . . . . . . . Highest Temperature 851 | 20 102 . . 30 279 . 199 851 Average Temperature 126 | 20 27 . . 17 65 . 123 156 Received Heat Transfer 1575 | . 111 . . . 270 . 117 1077 Effects 34 | . . . . . 2 . . 32 Shutdowns 9 | . . . . . . . . 9 Energy Bleed 2 | . . . . . . . . 2 Interference 10 | . . . . . 2 . . 8 Matter Decay 3 | . . . . . . . . 3 Short Circuit 3 | . . . . . . . . 3 Damage (minor) 5 | . . . . . . . . 5 Damage (major) 1 | . . . . . . . . 1 Damage (core) 1 | . . . . . . . . 1 Siege Activations . | . . . . . . . . . Robots Corrupted 7 | . . . . . 3 . . 4 Combat Hostiles 5 | . . . . . 1 . . 4 Parts Fried 12 | . 1 . . . 6 . . 5 Impact Corruptions . | . . . . . . . . . Robots Melted 4 | . . . . . . . . 4 Combat Hostiles 1 | . . . . . . . . 1 Parts Melted 12 | 2 . . . . . . 2 8 Heat Transferred 5476 | 400 . . . . 250 . 968 3858 Parts Sabotaged . | . . . . . . . . . Parts Stolen . | . . . . . . . . . Parts Stripped . | . . . . . . . . . Power Chain Reactions 8 | . . . . . 6 . . 2 Missiles Intercepted . | . . . . . . . . . Alert | -11 -10 -10 -10 -9 -8 -7 -6 -5 ------- Run | Scr Mat Min Exi Min Mat Fac Fac Fac Peak Influence 761 | 40 219 115 . 84 326 64 117 761 Average Influence 146 | 20 79 57 . 8 96 52 17 354 Maximum Alert Level 3 | . 1 . . . 1 . . 3 Low Security (%) 77 | 100 99 100 . 100 89 100 100 33 Level 1 5 | . . . . . 10 . . 10 Level 2 14 | . . . . . . . . 49 Level 3 1 | . . . . . . . . 6 Level 4 . | . . . . . . . . . Level 5 . | . . . . . . . . . High Security . | . . . . . . . . . Max Security . | . . . . . . . . . Squads Dispatched 16 | . 2 . . . 2 . 2 10 Investigation 3 | . 1 . . . 1 . . 1 Extermination 4 | . . . . . . . 1 3 Reinforcement 7 | . 1 . . . 1 . 1 4 Assault 2 | . . . . . . . . 2 Garrison . | . . . . . . . . . Intercept . | . . . . . . . . . Construction Impeded 5 | . . . . . 1 . . 4 Haulers Reinforced . | . . . . . . . . . Stealth | -11 -10 -10 -10 -9 -8 -7 -6 -5 --------- Run | Scr Mat Min Exi Min Mat Fac Fac Fac Distress Signals 5 | . 2 . . . 1 . . 2 Communications Jammed 21 | . . . . . . . . 21 Distress Signals 21 | . . . . . . . . 21 Times Spotted 108 | . 18 1 . 3 29 . 7 50 Peak Tracking Total 7 | . 3 2 . 2 5 . 3 7 Tactical Retreats 3 | . 1 . . . 2 . . . Traps | -11 -10 -10 -10 -9 -8 -7 -6 -5 ------- Run | Scr Mat Min Exi Min Mat Fac Fac Fac Traps Triggered 2 | . 1 . . . . . . 1 Indirectly . | . . . . . . . . . Trap Hack Attempts . | . . . . . . . . . Triggered . | . . . . . . . . . Disarmed . | . . . . . . . . . Reprogrammed . | . . . . . . . . . Reused . | . . . . . . . . . Traps Extracted . | . . . . . . . . . Installed . | . . . . . . . . . Triggered 1 | . . . . 1 . . . . Machines | -11 -10 -10 -10 -9 -8 -7 -6 -5 ---------- Run | Scr Mat Min Exi Min Mat Fac Fac Fac Machines Disabled 22 | . 2 1 . . 8 . 1 10 Max in Single Turn 6 | . 1 . . . 6 . 1 2 Garrison Access 2 | . . . . . 1 . 1 . Machines Sabotaged . | . . . . . . . . . Garrisons Compromised . | . . . . . . . . . Overloaded Fab Kills . | . . . . . . . . . Fab Network Shutdowns . | . . . . . . . . . Hacking | -11 -10 -10 -10 -9 -8 -7 -6 -5 --------- Run | Scr Mat Min Exi Min Mat Fac Fac Fac Machines Accessed 32 | . 9 . . . 12 2 3 6 Terminals 20 | . 6 . . . 8 1 2 3 Fabricators 1 | . . . . . . . . 1 Repair Stations 4 | . 1 . . . 1 . . 2 Recycling Units 2 | . 2 . . . . . . . Scanalyzers 3 | . . . . . 2 1 . . Garrison Access 2 | . . . . . 1 . 1 . Total Hacks 92 | . 30 . . . 39 4 7 12 Successful 53 | . 21 . . . 21 2 3 6 Failed 39 | . 9 . . . 18 2 4 6 Catastrophic 6 | . 2 . . . 2 1 1 . Database Lockouts . | . . . . . . . . . Manual 36 | . 12 . . . 20 . 3 1 Terminals 61 | . 23 . . . 27 1 5 5 Fabricators 2 | . . . . . . . . 2 Repair Stations 10 | . 3 . . . 2 . . 5 Recycling Units 4 | . 4 . . . . . . . Scanalyzers 12 | . . . . . 9 3 . . Garrison Access 3 | . . . . . 1 . 2 . Terminal Hacks 23 | . 12 . . . 8 . 1 2 Part Schematic 3 | . 3 . . . . . . . Prototype ID Bank 2 | . 1 . . . 1 . . . Branch Access Points 1 | . 1 . . . . . . . Emergency Access Points 2 | . 1 . . . . . 1 . Terminal Index 2 | . 1 . . . 1 . . . Unreport Threat 4 | . . . . . 2 . . 2 Locate Traps 2 | . 1 . . . 1 . . . Dispatch Records 1 | . 1 . . . . . . . Patrol Status 1 | . . . . . 1 . . . Transport Status 1 | . . . . . 1 . . . Recall Investigation 1 | . 1 . . . . . . . Recall Reinforcements 1 | . . . . . 1 . . . Hauler Manifests 1 | . 1 . . . . . . . Zone Layout 1 | . 1 . . . . . . . Fabricator Hacks 1 | . . . . . . . . 1 Load Schematic 1 | . . . . . . . . 1 Repair Station Hacks 6 | . 3 . . . . . . 3 Scan Component 3 | . 1 . . . . . . 2 Repair 2 | . 1 . . . . . . 1 Refit 1 | . 1 . . . . . . . Recycling Unit Hacks 4 | . 4 . . . . . . . Report Inventory 2 | . 2 . . . . . . . Retrieve Matter 1 | . 1 . . . . . . . Retrieve Components 1 | . 1 . . . . . . . Scanalyzer 11 | . . . . . 9 2 . . Insert Component 4 | . . . . . 3 1 . . Analyze 7 | . . . . . 6 1 . . Garrison Access Hacks 2 | . . . . . 1 . 1 . Seal Access 2 | . . . . . 1 . 1 . Unauthorized Hacks 6 | . 2 . . . 3 . 1 . Terminals 6 | . 2 . . . 3 . 1 . Track 1 | . 1 . . . . . . . Botnet 5 | . 1 . . . 3 . 1 . Fabricators . | . . . . . . . . . Repair Stations . | . . . . . . . . . Recycling Units . | . . . . . . . . . Scanalyzers . | . . . . . . . . . Garrison Access . | . . . . . . . . . Data Cores Recovered . | . . . . . . . . . Used . | . . . . . . . . . Hacking Detections 29 | . 8 . . . 11 2 2 6 Full Trace Events 2 | . . . . . 1 . . 1 Feedback Events . | . . . . . . . . . Feedback Blocked . | . . . . . . . . . Robot Schematics Acquired . | . . . . . . . . . Robots Built . | . . . . . . . . . Matter . | . . . . . . . . . Time . | . . . . . . . . . Total Robot Build Rating . | . . . . . . . . . Part Schematics Acquired 7 | . 3 . . . 3 1 . . Parts Built . | . . . . . . . . . Matter . | . . . . . . . . . Time . | . . . . . . . . . Total Part Build Rating . | . . . . . . . . . Parts Repaired 2 | . 1 . . . . . . 1 Time 38 | . 26 . . . . . . 12 Parts Recycled . | . . . . . . . . . Recycled Matter . | . . . . . . . . . Retrieved Matter . | . . . . . . . . . Retrieved Components 5 | . 5 . . . . . . . Parts Scanalyzed 4 | . . . . . 3 1 . . Part Schematics Acquired 4 | . . . . . 3 1 . . Parts Damaged 2 | . . . . . 2 . . . Bothacking | -11 -10 -10 -10 -9 -8 -7 -6 -5 ------------ Run | Scr Mat Min Exi Min Mat Fac Fac Fac Used RIF Installer . | . . . . . . . . . Robots Hacked . | . . . . . . . . . Non-combat . | . . . . . . . . . Combat . | . . . . . . . . . Robot Hacks Applied . | . . . . . . . . . Relay Couplers Released . | . . . . . . . . . Robots Rewired . | . . . . . . . . . Allies Hacked . | . . . . . . . . . Hacks Repelled . | . . . . . . . . . Allies | -11 -10 -10 -10 -9 -8 -7 -6 -5 -------- Run | Scr Mat Min Exi Min Mat Fac Fac Fac Total Allies 4 | . . 3 . 1 . . . . Largest Group 3 | . . 3 3 3 3 . . . Highest-Rated Group 55 | . . 40 40 55 55 . . . Highest-Rated Ally 31 | . . 16 16 31 31 . . . Total Orders 4 | . . . . . 2 . . 2 STAY 1 | . . . . . 1 . . . FOLLOW 1 | . . . . . 1 . . . EXPLORE 2 | . . . . . . . . 2 Ally Attacks 34 | . . 10 . 17 7 . . . Total Damage 370 | . . 99 . 203 68 . . . Kills 10 | . . 3 . 4 3 . . . Allies Corrupted . | . . . . . . . . . Allies Melted . | . . . . . . . . . Intel | -11 -10 -10 -10 -9 -8 -7 -6 -5 ------- Run | Scr Mat Min Exi Min Mat Fac Fac Fac Robot Analysis Total . | . . . . . . . . . Derelict Logs Recovered 2 | . . 2 . . . . . . Drone Launches 2 | . . . . . . . . 2 Drone Recoveries . | . . . . . . . . . Exploration | -11 -10 -10 -10 -9 -8 -7 -6 -5 ------------- Run | Scr Mat Min Exi Min Mat Fac Fac Fac Turns Passed 9367 | 231 979 409 528 1095 2198 417 879 2631 Spaces Moved 4084 | 102 579 245 353 550 896 186 316 857 Core 9 | 9 . . . . . . . . Treads 1972 | . . . . 385 555 186 316 530 Legs 346 | 19 . . . . . . . 327 Wheels 1757 | 74 579 245 353 165 341 . . . Hover . | . . . . . . . . . Flight . | . . . . . . . . . Fastest Speed 50 | 50 80 150 150 150 170 200 200 205 Average Speed 177 | 92 111 150 150 171 188 200 204 231 Slowest Speed 300 | 200 150 150 150 180 200 200 220 300 Overloaded Moves . | . . . . . . . . . Propulsion Burnouts . | . . . . . . . . . Robots Hopped . | . . . . . . . . . Cave-ins Triggered . | . . . . . . . . . Exploration Rate (%) 49 | 6 89 84 77 93 61 7 8 22 Regions Visited 8 Branch Regions 3 Pre-discovered Areas . | . . . . . . . . . Known Exits Taken 3 | . 1 . . . . 1 1 . Unknown Exits Taken 5 | 1 . 1 1 1 1 . . . Scrap Searched 3 | . . 1 . 2 . . . . Spaces Dug 75 | . 15 . . . 25 7 14 14 Terrain Destroyed 460 | . 118 . . . 59 7 20 256 Melee 58 | . . . . . 25 7 14 12 Projectile 15 | . . . . . . . 6 9 AOE 387 | . 118 . . . 34 . . 235 Actions | -11 -10 -10 -10 -9 -8 -7 -6 -5 --------- Run | Scr Mat Min Exi Min Mat Fac Fac Fac Total 5638 | 215 871 287 352 706 1243 226 490 1248 Wait 826 | 76 201 41 . 141 172 7 98 90 Move 4076 | 101 578 244 352 549 895 185 315 857 Hop . | . . . . . . . . . Pick Up 140 | 5 25 1 . 6 32 6 14 51 Fast Attach 39 | 9 7 . . 1 5 1 2 14 Attach 66 | 1 2 . . 1 11 4 2 45 Detach 9 | 2 1 . . . . 2 1 3 Swap 80 | 1 10 . . . 13 3 19 34 Drop 88 | 1 17 1 . 7 25 11 9 17 Fire 209 | 19 30 . . 1 64 . 11 84 Melee 104 | . . . . . 26 7 19 52 Ram . | . . . . . . . . . Kick . | . . . . . . . . . Crush . | . . . . . . . . . Escape Stasis . | . . . . . . . . . Rewire . | . . . . . . . . . Trap . | . . . . . . . . . Miscellaneous 1 | . . . . . . . . 1 Route ------- -11/Scrapyard -10/Materials (discovered 3 exits: *Mat x2 / *Min) -10/Mines (discovered 3 exits: *Mat x2 / [*Exi]) -10/Exiles (discovered 2 exits: [*Min x2]) -9/Mines (discovered 2 exits: *Mat x2) -8/Materials -7/Factory -6/Factory -5/Factory History --------- Turn | Location | Event 3 | -11/Scrapyard | Discovered new exit (range 15) 232 | -11/Scrapyard | Entered Materials 312 | -10/Materials | Build established: Mutant 504 | -10/Materials | Identified exit to Mines 572 | -10/Materials | Discovered new exit (range 11) 960 | -10/Materials | Build established: Hauler-Mutant 985 | -10/Materials | Discovered new exit (range 8) 1133 | -10/Materials | Repaired Wheel 1211 | -10/Materials | Entered Mines 1262 | -10/Mines | Received a Rocket Launcher from a helpful Derelict 1322 | -10/Mines | Discovered new exit (range 8) 1343 | -10/Mines | Assisted by bots powering up and referring to "LRC-V3" 1406 | -10/Mines | Identified exit to Materials 1478 | -10/Mines | Learned Materials stockpile data 1589 | -10/Mines | Deemed a non-threat by the Exiles lab entrance 1591 | -10/Mines | Discovered new exit (range 5) 1620 | -10/Mines | Entered Exiles 1620 | -10/Exiles | Found Exiles lab abandoned 1620 | -10/Exiles | Accompanied by 3 allies 1654 | -10/Exiles | Discovered new exit (range 14) 2129 | -10/Exiles | Discovered new exit (range 12) 2148 | -10/Exiles | Entered Mines 2148 | -9/Mines | Accompanied by 3 allies 2188 | -9/Mines | Met a Derelict bent on vengeance 2205 | -9/Mines | Discovered new exit (range 15) 3120 | -9/Mines | Discovered new exit (range 10) 3121 | -9/Mines | Received a Mining Laser from a helpful Derelict 3243 | -9/Mines | Entered Materials 3243 | -8/Materials | Accompanied by 3 allies 3243 | -8/Materials | Evolved 4 slots: Utility x3, Weapon x1 4937 | -8/Materials | Build established: Hauler-Tank 5419 | -8/Materials | Discovered new exit (range 9) 5441 | -8/Materials | Entered Factory 5441 | -7/Factory | Evolved 2 slots: Power x1, Utility x1 5654 | -7/Factory | Build established: Hauler-Mutant 5797 | -7/Factory | Discovered new exit (range 6) 5856 | -7/Factory | Identified exit to Factory 5858 | -7/Factory | Entered another Factory area 5858 | -6/Factory | Evolved 2 slots: Utility x2 5956 | -6/Factory | Build established: Hauler-Assassin 6731 | -6/Factory | Discovered new exit (range 3) 6735 | -6/Factory | Identified exit to Factory 6737 | -6/Factory | Entered another Factory area 6737 | -5/Factory | Evolved 2 slots: Utility x2 7592 | -5/Factory | Lost 6 parts (1n2u3w) 7707 | -5/Factory | Lost 3 parts (1p1n1u) 7726 | -5/Factory | System corruption reached 10% 7765 | -5/Factory | Repaired Hrd. Medium Armor Plating 7901 | -5/Factory | Lost 4 parts (1u3w) 7937 | -5/Factory | First assault squad dispatched 7945 | -5/Factory | Core integrity fell below 50% 7959 | -5/Factory | Destroyed 8 combat bots 7978 | -5/Factory | Lost 5 parts (3u2w) 8107 | -5/Factory | Lost 5 parts (2p3w) 8354 | -5/Factory | Build established: Hauler-Mutant 8443 | -5/Factory | Lost 5 parts (1p3u1w) 8718 | -5/Factory | Core integrity fell below 20% 8788 | -5/Factory | Lost 12 parts (3p3n3u3w) 9368 | -5/Factory | Destroyed self via exploding Nuclear Reactor Last Messages --------------- 09329_ System corrupted: Tesla Rifle targeting data glitched. 09329_ Penetrated by Slug. 09332_ System corrupted: Matter fused (-7). 09332_ Penetrated by Slug. 09334_ Y-64 Sentinel system terminally corrupted. 09345_ Acquired Imp. Treads. 09348_ Acquired 90 matter. 09353_ Dropped Imp. Treads. 09354_ Dropped Antigrav System. 09355_ Acquired Imp. Treads. 09358_ Dropped Carbon-fiber Leg. 09359_ Acquired KE Penetrator. 09362_ Dropped Carbon-fiber Leg. 09365_ Acquired Adv. Heat Sink. 09366_ Dropped Carbon-fiber Leg. 09368_ System corrupted: FCS attempts to trigger Hvy. Phase Cannon. 09368_ System corrupted: Hvy. Phase Cannon misfires. 09368_ Nuclear Reactor explodes. 09368_ Hcp. Storage Unit destroyed. 09368_ Destroyed Hcp. Storage Unit. Map ----- +----------------------------------------------------+ | ???????????????????????????????????????? | | ???????????????????????????????????????? | | ???????????????????????????????????????? | | ????????????? ?????????????????????????? | | ??????????????????????????????########## | | ???#????????????????#?????????# | | ?#????????????????????????????# | | ??????????????????????????????# | | ???????#??????????????????????# | | ?????????????? ?????#?????????# | | ???????????????????????#???#??# | | ???????????#?? ???????????????# | | ???#?#?####????????????#??????# | | ??????? ???????????????#???# | | ??????"" ?#???????#?????????# | | ??????"" ??? ???? ########### | | ?????""" #####+#### # ! | | #?? ? # ###+###### | | ?? """ # | | # """"" # | | # """"" + | | # # | | # # | | # ! # *=== ######### | | # !!! #####+#+## #??????## | | # !!! " " "#==@=! ######+#####???####"+ | | # !! "Y" ## !!! #? ????????????# """ | | # """ ## = #????"?????"???# T" | | ?# ########## #? ????????????# " " | | ?????#??????# #??"????"?"????# | | ????????????# #??????????????# | | ????????????# """ #????""????????# """ | | ????#???????# """ #??????????????# """ | | ???#??#??#??# """ # ????????????## """ | | ????????????# #??????????????# | | #???????#???# """ =#?????????????####### | | ?#??????????# """ # ??????? ??????????? | | ????????????# """ #???????????????????? | | ???#????????# !#??????????????#????? | | ?#????##?##?########???????????????????? | | ??????#??#???????????????##????????????? | | ????????????????????????#??????????????? | | ???????##?????????#?????????#?#???????#? | | ????????#??????????????????????????????? | | ???????#??#??#?????????#???????????????? | | #??????#??????????##??????????#????????? | | ?????#???????????????????????#?????#???? | | ??????????????##???#??#??#?#?#????????#? | | ???????#???????#????????????????????#??# | | ?????#?#??????????#???#???????????????#? | +----------------------------------------------------+ Best States ------------- Heat Dissipation 68 Coolant Potential 65 Energy Generation 36 Energy Capacity 540 Matter Stores 300 Matter Capacity 300 Sight Range 20 Robot Scan Range 16 Terrain Scan Range 24 Terrain Scan Density 10 Jamming Range 8 Power Amplification 20 Armor Coverage 825 Resistance: KI 25 Power Shielding 66 Evasion (%) 44 Targeting Accuracy 8 Recoil Reduction 6 Energy Filtering 50 Particle Charging 20 Item Schematics ----------------- Hcp. Storage Unit | -10/Materials | Hacked Grenade Launcher | -10/Materials | Hacked Lrg. Storage Unit | -10/Materials | Hacked Imp. Deuterium Engine | -8/Materials | Scanalyzed Arc Projector | -8/Materials | Scanalyzed Powered Hammer | -8/Materials | Scanalyzed Hvy. Particle Cannon | -7/Factory | Scanalyzed Robot Schematics ------------------ None Fabricated ------------ Nothing Alien Tech Used ----------------- None Achievements -------------- None Challenges ------------ None Game ------ Seed DynamicHackingPick Manual? 0 Play Time 01:59:40 Cumulative 107.0 hours Start 2020.09.06 @ 20:19:49 End 2020.09.07 @ 16:15:36 Sessions 2 Manual Loads 0 Difficulty Rogue Special Mode None Game No. 67 Rogue 67 Adventurer 0 Explorer 0 Win Type - Total 1 Types 1/0/0/0/0/0/0 Lore% 30 Gallery% 52 Achievement% 41 Wizard Run 0 Options --------- ASCII 0 Keyboard 0 Movement Mouse Keybinds 0 Fullscreen 2 Font 18/TerminusBold Map View 76x50 Tactical HUD 1 Map Filters NONE Filters NONE Steam 1 RUN: dd8edd11-23e1-4bdc-b871-84c058ae68d0